[Event "SVK Amateur-ch 2020"]
[Site "Topolcany"]
[Date "2020.07.10"]
[Round "1.1"]
[White "Majzlan, Blazej"]
[Black "Lach, Piotr"]
[Result "1/2-1/2"]
[ECO "B23"]
[WhiteElo "1656"]
[BlackElo "2086"]
[Annotator "RC"]
[PlyCount "40"]
[EventDate "2020.07.10"]
[EventType "swiss"]
[EventCountry "SVK"]
[SourceTitle "playchess.com"]
[Source "ChessBase"]
[SourceQuality "1"]
[TimeControl "3600+30"]

1. e4 {[%emt 0:00:01]} c5 {[%emt 0:00:00]} 2. Nc3 {[%emt 0:00:04]} a6 {[%emt 0:00:00]} 3. d3 {[%emt 0:00:10]} b5 {[%emt 0:00:57]} 4. a3 {[%emt 0:00:21]} g6 {[%emt 0:00:45]} 5. g3 {[%emt 0:00:07]} Bb7 {[%emt 0:00:27]} 6. Bg2 {[%emt 0:00:01]} Bg7 {[%emt 0:00:39]} 7. Nge2 {[%emt 0:01:10]} Nc6 {[%emt 0:10:18]} 8. O-O {[%emt 0:00:10]} e6 {[%emt 0:10:34]} 9. Nf4 {[%emt 0:03:27]} Nge7 {[%emt 0:02:37]} 10. h4 {[%emt 0:03:47]} Nd4 {[%emt 0:13:59]} 11. Nce2 {[%emt 0:06:02]} e5 {[%emt 0:08:02]} 12. Nh3 {[%emt 0:07:19]} Nxe2+ {[%emt 0:00:34]} 13. Qxe2 {[%emt 0:06:00]} O-O {[%emt 0:01:13]} 14. Bg5 {[%emt 0:00:30]} f6 {[%emt 0:00:30]} 15. Be3 {[%emt 0:00:30]} Rc8 {[%emt 0:00:30]} 16. c3 {[%emt 0:00:30]} d5 {[%emt 0:00:30]} 17. f4 {[%emt 0:00:30]} d4 {[%emt 0:04:08]} 18. cxd4 {[%emt 0:06:09]} exd4 {[%emt 0:01:23]} 19. Bd2 {[%emt 0:01:21]} Qd7 {[%emt 0:01:09]} 20. Rfc1 {[%emt 0:00:30]} f5 {[%emt 0:03:26]} 1/2-1/2

[Event "SVK Amateur-ch 2020"]
[Site "Topolcany"]
[Date "2020.07.10"]
[Round "1.2"]
[White "Lecky, Juraj"]
[Black "Skrinar, Marek"]
[Result "0-1"]
[ECO "B01"]
[WhiteElo "2083"]
[BlackElo "1654"]
[Annotator "RC"]
[PlyCount "81"]
[EventDate "2020.07.10"]
[EventType "swiss"]
[EventCountry "SVK"]
[SourceTitle "playchess.com"]
[Source "ChessBase"]
[SourceQuality "1"]
[TimeControl "3600+30"]

1. e4 {[%emt 0:00:00]} d5 {[%emt 0:00:50]} 2. exd5 {[%emt 0:00:00]} Qxd5 {[%emt 0:00:08]} 3. Nc3 {[%emt 0:00:00]} Qa5 {[%emt 0:00:07]} 4. d4 {[%emt 0:00:15]} c6 {[%emt 0:00:39]} 5. Bc4 {[%emt 0:01:12]} Nf6 {[%emt 0:01:54]} 6. Nf3 {[%emt 0:01:09]} Bf5 {[%emt 0:01:37]} 7. O-O {[%emt 0:04:17]} e6 {[%emt 0:01:52]} 8. Ne5 {[%emt 0:00:34]} Be7 {[%emt 0:01:27]} 9. Be3 {[%emt 0:13:12]} O-O {[%emt 0:01:25]} 10. a3 {[%emt 0:00:14]} Nd5 {[%emt 0:08:38]} 11. Nxd5 {[%emt 0:03:36]} cxd5 {[%emt 0:06:17]} 12. Bd3 {[%emt 0:00:19]} Bxd3 {[%emt 0:01:55]} 13. Qxd3 {[%emt 0:00:22]} Qa6 {[%emt 0:03:55]} 14. Qd2 {[%emt 0:00:19]} Rd8 {[%emt 0:04:16]} 15. f4 {[%emt 0:04:40]} Nd7 {[%emt 0:04:36]} 16. Rf3 {[%emt 0:00:07]} Nf6 {[%emt 0:00:24]} 17. Rh3 {[%emt 0:00:29]} Ne4 {[%emt 0:00:37]} 18. Qd1 {[%emt 0:00:36]} g6 {[%emt 0:06:41]} 19. g4 {[%emt 0:12:49]} f5 {[%emt 0:07:51]} 20. g5 {[%emt 0:02:00]} Bd6 {[%emt 0:04:17]} 21. Nd3 {[%emt 0:04:25]} Rac8 {[%emt 0:02:46]} 22. Rf3 {[%emt 0:03:25]} Qc4 {[%emt 0:00:32]} 23. Rc1 {[%emt 0:01:02]} Qc7 {[%emt 0:01:49]} 24. h4 {[%emt 0:00:11]} Qg7 {[%emt 0:01:28]} 25. Rh3 {[%emt 0:04:08]} Kf7 {[%emt 0:00:57]} 26. h5 {[%emt 0:08:34]} Rc7 {[%emt 0:00:45]} 27. c3 {[%emt 0:00:13]} Rdc8 {[%emt 0:02:28]} 28. Rc2 {[%emt 0:00:33]} Rh8 {[%emt 0:00:52]} 29. Rch2 {[%emt 0:00:23]} Rcc8 {[%emt 0:00:29]} 30. Qb3 {[%emt 0:00:55]} b6 {[%emt 0:00:51]} 31. Qa4 {[%emt 0:00:57]} Rc7 {[%emt 0:00:25]} 32. hxg6+ {[%emt 0:00:24]} Qxg6 {[%emt 0:00:15]} 33. Rh6 {[%emt 0:00:27]} Qg8 {[%emt 0:01:41]} 34. Qd1 {[%emt 0:01:58]} Kf8 {[%emt 0:00:53]} 35. Qh5 {[%emt 0:01:13]} Rg7 {[%emt 0:00:39]} 36. Rg2 {[%emt 0:01:12]} Rg6 {[%emt 0:00:20]} 37. Qh4 {[%emt 0:01:25]} Ke8 {[%emt 0:00:41]} 38. Kf1 {[%emt 0:00:17]} Qf7 {[%emt 0:00:51]} 39. Rh2 {[%emt 0:00:34]} Rxh6 {[%emt 0:00:42]} 40. Qxh6 {[%emt 0:00:10]} Bf8 {[%emt 0:00:32]} 41. Qh5 {[%emt 0:01:20]} 0-1

[Event "SVK Amateur-ch 2020"]
[Site "Topolcany"]
[Date "2020.07.10"]
[Round "1.3"]
[White "Rakovsky, Jakub"]
[Black "Szitas, Gabor"]
[Result "1/2-1/2"]
[ECO "C50"]
[WhiteElo "1644"]
[BlackElo "2082"]
[Annotator "RC"]
[PlyCount "68"]
[EventDate "2020.07.10"]
[EventType "swiss"]
[EventCountry "SVK"]
[SourceTitle "playchess.com"]
[Source "ChessBase"]
[SourceQuality "1"]
[TimeControl "3600+30"]

1. e4 {[%emt 0:00:00]} e5 {[%emt 0:00:18]} 2. Bc4 {[%emt 0:00:40]} Nf6 {[%emt 0:00:30]} 3. d3 {[%emt 0:00:09]} Nc6 {[%emt 0:03:08]} 4. Nf3 {[%emt 0:00:32]} Bc5 {[%emt 0:01:46]} 5. Bg5 {[%emt 0:04:12]} d6 {[%emt 0:01:26]} 6. Nc3 {[%emt 0:00:55]} h6 {[%emt 0:00:08]} 7. Bh4 {[%emt 0:00:16]} g5 {[%emt 0:00:29]} 8. Nxg5 {[%emt 0:06:39]} hxg5 {[%emt 0:09:19]} 9. Bxg5 {[%emt 0:00:16]} Rg8 {[%emt 0:02:53]} 10. h4 {[%emt 0:05:30]} Bg4 {[%emt 0:06:15]} 11. f3 {[%emt 0:08:13]} Be6 {[%emt 0:00:43]} 12. a3 {[%emt 0:07:55]} Nd4 {[%emt 0:10:04]} 13. f4 {[%emt 0:06:02]} Bxc4 {[%emt 0:11:25]} 14. dxc4 {[%emt 0:00:24]} Ne6 {[%emt 0:13:51]} 15. fxe5 {[%emt 0:08:38]} Nxg5 {[%emt 0:00:17]} 16. hxg5 {[%emt 0:00:05]} Nd7 {[%emt 0:00:13]} 17. e6 {[%emt 0:01:18]} Qxg5 {[%emt 0:05:06]} 18. exd7+ {[%emt 0:03:58]} Kxd7 {[%emt 0:00:04]} 19. Qf3 {[%emt 0:01:10]} Rae8 {[%emt 0:00:04]} 20. Nd5 {[%emt 0:01:50]} f5 {[%emt 0:01:13]} 21. Rh5 {[%emt 0:05:24]} Rxe4+ {[%emt 0:00:20]} 22. Kf1 {[%emt 0:01:24]} Qg6 {[%emt 0:00:36]} 23. Qxf5+ {[%emt 0:01:41]} Qxf5+ {[%emt 0:00:39]} 24. Rxf5 {[%emt 0:00:06]} Ke6 {[%emt 0:00:31]} 25. Rf6+ {[%emt 0:01:54]} Ke5 {[%emt 0:00:04]} 26. Rf7 {[%emt 0:01:36]} Kd4 {[%emt 0:01:01]} 27. b3 {[%emt 0:00:27]} c6 {[%emt 0:00:19]} 28. Rd1+ {[%emt 0:00:12]} Ke5 {[%emt 0:00:05]} 29. Re7+ {[%emt 0:00:07]} Kf5 {[%emt 0:00:05]} 30. Rxe4 {[%emt 0:00:02]} cxd5 {[%emt 0:00:18]} 31. Re7 {[%emt 0:00:45]} dxc4 {[%emt 0:01:46]} 32. bxc4 {[%emt 0:00:29]} Rg3 {[%emt 0:00:32]} 33. Rd3 {[%emt 0:00:23]} Rxd3 {[%emt 0:00:00]} 34. g3 {[%emt 0:02:29]} Kg6 {[%emt 0:00:00]} 1/2-1/2

[Event "SVK Amateur-ch 2020"]
[Site "Topolcany"]
[Date "2020.07.10"]
[Round "1.4"]
[White "Deruelle Sala, Albert"]
[Black "Mikula, Martin"]
[Result "1-0"]
[ECO "D71"]
[WhiteElo "2078"]
[BlackElo "1641"]
[Annotator "ChessBase"]
[PlyCount "89"]
[EventDate "2020.07.10"]
[EventType "swiss"]
[EventCountry "SVK"]
[SourceTitle "playchess.com"]
[Source "ChessBase"]
[SourceQuality "1"]
[TimeControl "3600+30"]

1. d4 {[%emt 0:00:00]} Nf6 {[%emt 0:00:28]} 2. c4 {[%emt 0:00:00]} g6 {[%emt 0:02:00]} 3. Nc3 {[%emt 0:00:00]} d5 {[%emt 0:00:39]} 4. cxd5 {[%emt 0:01:42]} Nxd5 {[%emt 0:00:12]} 5. g3 {[%emt 0:01:09]} Bg7 {[%emt 0:04:07]} 6. Bg2 {[%emt 0:00:14]} c6 {[%emt 0:03:43]} 7. e3 {[%emt 0:01:23]} O-O {[%emt 0:01:15]} 8. Nge2 {[%emt 0:00:09]} Be6 {[%emt 0:02:07]} 9. O-O {[%emt 0:00:30]} Na6 {[%emt 0:01:15]} 10. Bd2 {[%emt 0:01:03]} Nac7 {[%emt 0:02:40]} 11. Ne4 {[%emt 0:01:18]} Bg4 {[%emt 0:06:39]} 12. h3 {[%emt 0:01:13]} Bd7 {[%emt 0:01:31]} 13. Nc5 {[%emt 0:00:39]} Rb8 {[%emt 0:00:27]} 14. Nxd7 {[%emt 0:02:06]} Qxd7 {[%emt 0:00:12]} 15. Qa4 {[%emt 0:03:19]} Nb5 {[%emt 0:03:37]} 16. Rac1 {[%emt 0:01:28]} Nb6 {[%emt 0:05:20]} 17. Qa5 {[%emt 0:00:52]} Nd6 {[%emt 0:06:35]} 18. b3 {[%emt 0:01:17]} Nbc8 {[%emt 0:03:17]} 19. Rfd1 {[%emt 0:00:48]} Qd8 {[%emt 0:00:53]} 20. Qc3 {[%emt 0:03:33]} Nb6 {[%emt 0:02:07]} 21. a4 {[%emt 0:00:43]} e6 {[%emt 0:01:06]} 22. Qc2 {[%emt 0:01:25]} Re8 {[%emt 0:03:43]} 23. Nf4 {[%emt 0:00:26]} Nf5 {[%emt 0:03:13]} 24. Nd3 {[%emt 0:00:50]} Nd7 {[%emt 0:01:41]} 25. Bc3 {[%emt 0:02:04]} Qg5 {[%emt 0:01:41]} 26. b4 {[%emt 0:02:26]} Nb6 {[%emt 0:03:08]} 27. Nc5 {[%emt 0:05:25]} Red8 {[%emt 0:01:09]} 28. Be1 {[%emt 0:02:08]} Nd7 {[%emt 0:00:46]} 29. b5 {[%emt 0:00:48]} Nxc5 {[%emt 0:00:48]} 30. dxc5 {[%emt 0:00:29]} Rxd1 {[%emt 0:01:05]} 31. Rxd1 {[%emt 0:00:09]} Ne7 {[%emt 0:00:48]} 32. Rd7 {[%emt 0:01:38]} cxb5 {[%emt 0:02:36]} 33. axb5 {[%emt 0:00:11]} Nd5 {[%emt 0:01:59]} 34. e4 {[%emt 0:06:10]} Qe5 {[%emt 0:01:04]} 35. Bd2 {[%emt 0:09:59]} Qa1+ {[%emt 0:00:38]} 36. Bf1 {[%emt 0:02:14]} Nf6 {[%emt 0:00:12]} 37. Rc7 {[%emt 0:03:48]} Ne8 {[%emt 0:00:22]} 38. Rd7 {[%emt 0:00:46]} Nf6 {[%emt 0:00:19]} 39. Bc3 {[%emt 0:01:49]} Qa3 {[%emt 0:00:16]} 40. Bxf6 {[%emt 0:00:44]} Bxf6 {[%emt 0:00:06]} 41. c6 {[%emt 0:00:10]} bxc6 {[%emt 0:00:21]} 42. bxc6 {[%emt 0:00:05]} a6 {[%emt 0:00:48]} 43. c7 {[%emt 0:00:27]} Rc8 {[%emt 0:00:16]} 44. Qc6 {[%emt 0:00:15]} Qa5 {[%emt 0:00:27]} 45. Qb7 {[%emt 0:00:47]} 1-0

[Event "SVK Amateur-ch 2020"]
[Site "Topolcany"]
[Date "2020.07.10"]
[Round "1.5"]
[White "Kostic, Ivan"]
[Black "Tropp, Oliver"]
[Result "0-1"]
[ECO "E00"]
[WhiteElo "1694"]
[BlackElo "2077"]
[Annotator "ChessBase"]
[PlyCount "82"]
[EventDate "2020.07.10"]
[EventType "swiss"]
[EventCountry "SVK"]
[SourceTitle "playchess.com"]
[Source "ChessBase"]
[SourceQuality "1"]
[TimeControl "3600+30"]

1. d4 {[%emt 0:00:00]} e6 {[%emt 0:00:00]} 2. c4 {[%emt 0:00:22]} d5 {[%emt 0:00:00]} 3. e3 {[%emt 0:01:04]} Nf6 {[%emt 0:00:02]} 4. a3 {[%emt 0:00:35]} a5 {[%emt 0:00:28]} 5. b3 {[%emt 0:03:00]} c5 {[%emt 0:00:19]} 6. cxd5 {[%emt 0:02:17]} exd5 {[%emt 0:00:20]} 7. dxc5 {[%emt 0:01:04]} Bxc5 {[%emt 0:00:25]} 8. Bb2 {[%emt 0:00:15]} O-O {[%emt 0:00:28]} 9. Nf3 {[%emt 0:00:29]} Nc6 {[%emt 0:00:23]} 10. Be2 {[%emt 0:00:35]} Re8 {[%emt 0:01:46]} 11. O-O {[%emt 0:01:14]} Ne4 {[%emt 0:05:13]} 12. Nc3 {[%emt 0:01:48]} Nxc3 {[%emt 0:06:29]} 13. Bxc3 {[%emt 0:00:37]} Qe7 {[%emt 0:02:57]} 14. Bb2 {[%emt 0:04:34]} Be6 {[%emt 0:04:07]} 15. Bb5 {[%emt 0:02:52]} Rec8 {[%emt 0:03:33]} 16. Re1 {[%emt 0:04:48]} Na7 {[%emt 0:07:26]} 17. Bf1 {[%emt 0:01:19]} Nc6 {[%emt 0:00:43]} 18. Re2 {[%emt 0:04:43]} Ra6 {[%emt 0:09:03]} 19. Rd2 {[%emt 0:01:03]} Rb6 {[%emt 0:00:04]} 20. Nd4 {[%emt 0:02:10]} Nxd4 {[%emt 0:02:48]} 21. Bxd4 {[%emt 0:04:16]} Bxd4 {[%emt 0:00:27]} 22. Rxd4 {[%emt 0:05:52]} g6 {[%emt 0:00:05]} 23. Qd2 {[%emt 0:03:15]} Rxb3 {[%emt 0:05:20]} 24. Qxa5 {[%emt 0:00:39]} Rc2 {[%emt 0:00:14]} 25. Rb4 {[%emt 0:02:53]} Rxb4 {[%emt 0:01:27]} 26. Qxb4 {[%emt 0:01:14]} Qf6 {[%emt 0:00:21]} 27. Qe1 {[%emt 0:00:49]} Rxf2 {[%emt 0:00:22]} 28. Rb1 {[%emt 0:03:28]} Rb2 {[%emt 0:00:27]} 29. Rxb2 {[%emt 0:00:38]} Qxb2 {[%emt 0:00:06]} 30. Qb4 {[%emt 0:01:25]} Qxb4 {[%emt 0:02:27]} 31. axb4 {[%emt 0:00:12]} Kg7 {[%emt 0:00:06]} 32. b5 {[%emt 0:00:23]} b6 {[%emt 0:00:05]} 33. Kf2 {[%emt 0:00:18]} Kf6 {[%emt 0:00:04]} 34. Ke2 {[%emt 0:00:29]} Ke5 {[%emt 0:00:05]} 35. Kd3 {[%emt 0:00:29]} Bd7 {[%emt 0:01:46]} 36. Kd2 {[%emt 0:00:26]} Kd6 {[%emt 0:00:14]} 37. g3 {[%emt 0:00:34]} Kc5 {[%emt 0:00:09]} 38. Kc3 {[%emt 0:02:25]} f6 {[%emt 0:00:25]} 39. Bd3 {[%emt 0:00:24]} Bxb5 {[%emt 0:00:06]} 40. Bxb5 {[%emt 0:00:17]} Kxb5 {[%emt 0:00:08]} 41. Kd4 {[%emt 0:00:02]} Kc6 {[%emt 0:00:07]} 0-1

[Event "SVK Amateur-ch 2020"]
[Site "Topolcany"]
[Date "2020.07.10"]
[Round "1.6"]
[White "Frink, Ferenc"]
[Black "Hasterok, Lukasz"]
[Result "1-0"]
[ECO "B10"]
[WhiteElo "2075"]
[BlackElo "1622"]
[Annotator "ChessBase"]
[PlyCount "79"]
[EventDate "2020.07.10"]
[EventType "swiss"]
[EventCountry "SVK"]
[SourceTitle "playchess.com"]
[Source "ChessBase"]
[SourceQuality "1"]
[TimeControl "3600+30"]

1. e4 {[%emt 0:02:20]} c6 {[%emt 0:00:04]} 2. a3 {[%emt 0:00:35]} d5 {[%emt 0:01:25]} 3. e5 {[%emt 0:00:03]} Bf5 {[%emt 0:00:54]} 4. d4 {[%emt 0:00:09]} e6 {[%emt 0:00:38]} 5. Bd3 {[%emt 0:00:03]} Bxd3 {[%emt 0:01:12]} 6. Qxd3 {[%emt 0:00:02]} c5 {[%emt 0:00:48]} 7. c3 {[%emt 0:00:03]} Nc6 {[%emt 0:00:57]} 8. b4 {[%emt 0:00:03]} cxd4 {[%emt 0:01:17]} 9. cxd4 {[%emt 0:00:02]} Qb6 {[%emt 0:01:45]} 10. Ne2 {[%emt 0:00:10]} Nge7 {[%emt 0:01:10]} 11. O-O {[%emt 0:01:28]} Nf5 {[%emt 0:00:29]} 12. Be3 {[%emt 0:00:10]} Be7 {[%emt 0:00:28]} 13. Nbc3 {[%emt 0:00:10]} O-O {[%emt 0:08:57]} 14. Nxd5 {[%emt 0:01:33]} Qd8 {[%emt 0:09:47]} 15. Nxe7+ {[%emt 0:00:27]} Nfxe7 {[%emt 0:00:15]} 16. Qe4 {[%emt 0:00:26]} Nd5 {[%emt 0:00:26]} 17. Qg4 {[%emt 0:01:55]} Nce7 {[%emt 0:01:54]} 18. Bg5 {[%emt 0:01:14]} Qd7 {[%emt 0:00:49]} 19. Rad1 {[%emt 0:00:49]} Rac8 {[%emt 0:00:44]} 20. h4 {[%emt 0:00:40]} Nf5 {[%emt 0:00:56]} 21. Rd3 {[%emt 0:01:29]} f6 {[%emt 0:06:02]} 22. exf6 {[%emt 0:02:16]} Nxf6 {[%emt 0:00:37]} 23. Bxf6 {[%emt 0:00:11]} Rxf6 {[%emt 0:00:05]} 24. Nf4 {[%emt 0:00:42]} Rc4 {[%emt 0:01:38]} 25. Rfd1 {[%emt 0:00:55]} Qf7 {[%emt 0:10:07]} 26. g3 {[%emt 0:05:39]} b5 {[%emt 0:08:37]} 27. Nh3 {[%emt 0:03:08]} e5 {[%emt 0:03:48]} 28. dxe5 {[%emt 0:00:38]} h6 {[%emt 0:05:56]} 29. Qe2 {[%emt 0:04:33]} Rfc6 {[%emt 0:00:08]} 30. Rd7 {[%emt 0:02:40]} Qe6 {[%emt 0:01:23]} 31. Nf4 {[%emt 0:01:06]} Rxf4 {[%emt 0:00:23]} 32. gxf4 {[%emt 0:00:20]} Qg6+ {[%emt 0:00:13]} 33. Kh2 {[%emt 0:00:39]} Nxh4 {[%emt 0:01:12]} 34. Rg1 {[%emt 0:01:20]} Qf5 {[%emt 0:00:47]} 35. Rdxg7+ {[%emt 0:01:11]} Kf8 {[%emt 0:00:07]} 36. Rg8+ {[%emt 0:00:45]} Ke7 {[%emt 0:00:30]} 37. R1g7+ {[%emt 0:00:17]} Ke6 {[%emt 0:00:18]} 38. Re8+ {[%emt 0:00:26]} Kd5 {[%emt 0:00:20]} 39. Rd7+ {[%emt 0:00:15]} Qxd7 {[%emt 0:00:32]} 40. Qd3# {[%emt 0:00:12]} 1-0

[Event "SVK Amateur-ch 2020"]
[Site "Topolcany"]
[Date "2020.07.10"]
[Round "1.7"]
[White "Slovak, Pavol"]
[Black "Ihnat, Marek"]
[Result "0-1"]
[ECO "D93"]
[WhiteElo "1618"]
[BlackElo "2065"]
[Annotator "ChessBase"]
[PlyCount "116"]
[EventDate "2020.07.10"]
[EventType "swiss"]
[EventCountry "SVK"]
[SourceTitle "playchess.com"]
[Source "ChessBase"]
[SourceQuality "1"]
[TimeControl "3600+30"]

1. Nf3 {[%emt 0:00:00]} Nf6 {[%emt 0:00:00]} 2. d4 {[%emt 0:00:00]} g6 {[%emt 0:00:00]} 3. c4 {[%emt 0:00:01]} Bg7 {[%emt 0:00:00]} 4. Nc3 {[%emt 0:00:08]} d5 {[%emt 0:00:06]} 5. Bf4 {[%emt 0:00:23]} O-O {[%emt 0:00:20]} 6. e3 {[%emt 0:00:11]} c5 {[%emt 0:01:48]} 7. dxc5 {[%emt 0:00:22]} Qa5 {[%emt 0:00:45]} 8. Qa4 {[%emt 0:05:32]} Qxc5 {[%emt 0:05:42]} 9. b4 {[%emt 0:01:14]} Qc6 {[%emt 0:09:17]} 10. Nd4 {[%emt 0:00:20]} Qxa4 {[%emt 0:01:38]} 11. Nxa4 {[%emt 0:00:11]} Bd7 {[%emt 0:09:09]} 12. Nc5 {[%emt 0:01:09]} b6 {[%emt 0:11:18]} 13. Nxd7 {[%emt 0:03:28]} Nbxd7 {[%emt 0:00:28]} 14. Bg5 {[%emt 0:04:01]} Ne4 {[%emt 0:06:27]} 15. Bh4 {[%emt 0:01:31]} g5 {[%emt 0:10:12]} 16. Bg3 {[%emt 0:00:06]} dxc4 {[%emt 0:06:19]} 17. Bxc4 {[%emt 0:02:42]} Nxg3 {[%emt 0:00:11]} 18. hxg3 {[%emt 0:00:09]} Ne5 {[%emt 0:00:14]} 19. Bd5 {[%emt 0:01:22]} Rad8 {[%emt 0:00:58]} 20. Be4 {[%emt 0:00:48]} h6 {[%emt 0:01:53]} 21. Rd1 {[%emt 0:00:46]} e6 {[%emt 0:00:42]} 22. Ke2 {[%emt 0:01:30]} Rd7 {[%emt 0:01:38]} 23. Nc6 {[%emt 0:02:49]} Rxd1 {[%emt 0:01:32]} 24. Rxd1 {[%emt 0:00:10]} Nxc6 {[%emt 0:00:13]} 25. Bxc6 {[%emt 0:00:10]} Rc8 {[%emt 0:00:27]} 26. b5 {[%emt 0:00:08]} Rc7 {[%emt 0:00:43]} 27. g4 {[%emt 0:00:39]} Kf8 {[%emt 0:00:55]} 28. Kf3 {[%emt 0:00:39]} Ke7 {[%emt 0:00:10]} 29. Ke4 {[%emt 0:01:01]} a6 {[%emt 0:00:32]} 30. a4 {[%emt 0:00:17]} axb5 {[%emt 0:00:21]} 31. axb5 {[%emt 0:00:12]} Ra7 {[%emt 0:00:10]} 32. Rd3 {[%emt 0:00:48]} Ra4+ {[%emt 0:01:03]} 33. Kf3 {[%emt 0:00:09]} Ra7 {[%emt 0:00:14]} 34. Kg3 {[%emt 0:01:27]} Be5+ {[%emt 0:00:58]} 35. Kf3 {[%emt 0:01:16]} Bd6 {[%emt 0:00:35]} 36. Rd1 {[%emt 0:00:41]} Be5 {[%emt 0:00:07]} 37. Ke4 {[%emt 0:00:58]} Ra4+ {[%emt 0:00:53]} 38. Kf3 {[%emt 0:00:09]} Ra7 {[%emt 0:00:14]} 39. g3 {[%emt 0:00:39]} Bg7 {[%emt 0:00:40]} 40. Kg2 {[%emt 0:00:33]} Bc3 {[%emt 0:00:35]} 41. Rd3 {[%emt 0:00:44]} Bb4 {[%emt 0:00:23]} 42. f4 {[%emt 0:01:32]} Bc5 {[%emt 0:00:30]} 43. Kf3 {[%emt 0:01:06]} Kf6 {[%emt 0:00:39]} 44. Bd7 {[%emt 0:02:39]} Ra2 {[%emt 0:00:26]} 45. Be8 {[%emt 0:00:39]} Ke7 {[%emt 0:00:31]} 46. Bc6 {[%emt 0:00:11]} Ra7 {[%emt 0:00:25]} 47. e4 {[%emt 0:02:06]} Ra1 {[%emt 0:00:32]} 48. f5 {[%emt 0:01:29]} e5 {[%emt 0:00:34]} 49. Rd7+ {[%emt 0:00:59]} Kf6 {[%emt 0:00:20]} 50. Bd5 {[%emt 0:00:20]} Ra3+ {[%emt 0:00:40]} 51. Kg2 {[%emt 0:00:33]} Be7 {[%emt 0:00:29]} 52. Rb7 {[%emt 0:00:22]} Ra1 {[%emt 0:00:32]} 53. Rxb6+ {[%emt 0:00:28]} Kg7 {[%emt 0:00:09]} 54. Rc6 {[%emt 0:00:56]} Rb1 {[%emt 0:00:37]} 55. b6 {[%emt 0:00:25]} Rb2+ {[%emt 0:00:41]} 56. Kf3 {[%emt 0:00:40]} Bd8 {[%emt 0:00:16]} 57. Rc8 {[%emt 0:01:07]} Bxb6 {[%emt 0:00:15]} 58. f6+ {[%emt 0:02:17]} Kh7 {[%emt 0:00:24]} 0-1

[Event "SVK Amateur-ch 2020"]
[Site "Topolcany"]
[Date "2020.07.10"]
[Round "1.8"]
[White "Hasterok, Mateusz"]
[Black "Durovka, Marek"]
[Result "1-0"]
[ECO "D11"]
[WhiteElo "2056"]
[BlackElo "1593"]
[Annotator "ChessBase"]
[PlyCount "61"]
[EventDate "2020.07.10"]
[EventType "swiss"]
[EventCountry "SVK"]
[SourceTitle "playchess.com"]
[Source "ChessBase"]
[SourceQuality "1"]
[TimeControl "3600+30"]

1. d4 {[%emt 0:00:00]} d5 {[%emt 0:00:00]} 2. c4 {[%emt 0:00:00]} c6 {[%emt 0:00:00]} 3. Nc3 {[%emt 0:00:00]} Nf6 {[%emt 0:00:09]} 4. e3 {[%emt 0:00:00]} Bg4 {[%emt 0:03:02]} 5. Nf3 {[%emt 0:03:13]} e6 {[%emt 0:00:29]} 6. Be2 {[%emt 0:01:04]} Bd6 {[%emt 0:01:46]} 7. O-O {[%emt 0:01:07]} O-O {[%emt 0:00:49]} 8. Ne5 {[%emt 0:07:01]} Bxe2 {[%emt 0:01:08]} 9. Qxe2 {[%emt 0:00:24]} Nbd7 {[%emt 0:00:11]} 10. f4 {[%emt 0:01:15]} Qe7 {[%emt 0:08:16]} 11. Bd2 {[%emt 0:02:33]} Rfd8 {[%emt 0:02:29]} 12. c5 {[%emt 0:03:38]} Bc7 {[%emt 0:00:09]} 13. Be1 {[%emt 0:00:25]} Nxe5 {[%emt 0:02:51]} 14. fxe5 {[%emt 0:00:21]} Nd7 {[%emt 0:01:45]} 15. Qg4 {[%emt 0:01:33]} Rf8 {[%emt 0:03:37]} 16. Bh4 {[%emt 0:04:41]} f6 {[%emt 0:10:19]} 17. e4 {[%emt 0:02:49]} b6 {[%emt 0:10:19]} 18. exd5 {[%emt 0:01:02]} exd5 {[%emt 0:00:22]} 19. Rae1 {[%emt 0:03:29]} Bxe5 {[%emt 0:07:23]} 20. cxb6 {[%emt 0:10:13]} axb6 {[%emt 0:00:53]} 21. dxe5 {[%emt 0:00:31]} Nxe5 {[%emt 0:00:17]} 22. Qf5 {[%emt 0:02:30]} d4 {[%emt 0:02:09]} 23. Nd1 {[%emt 0:04:08]} Rxa2 {[%emt 0:04:10]} 24. Bg3 {[%emt 0:01:31]} Ra5 {[%emt 0:01:32]} 25. Qc2 {[%emt 0:00:58]} Rd8 {[%emt 0:01:44]} 26. Qb3+ {[%emt 0:03:04]} Rdd5 {[%emt 0:00:46]} 27. Bxe5 {[%emt 0:00:50]} fxe5 {[%emt 0:00:10]} 28. Qxb6 {[%emt 0:01:31]} Qd6 {[%emt 0:00:48]} 29. Qb7 {[%emt 0:02:44]} Qd7 {[%emt 0:01:46]} 30. Rxe5 {[%emt 0:00:09]} h6 {[%emt 0:01:46]} 31. Qxd7 {[%emt 0:00:07]} 1-0

[Event "SVK Amateur-ch 2020"]
[Site "Topolcany"]
[Date "2020.07.10"]
[Round "1.9"]
[White "Galdik, Stefan"]
[Black "Blaho, Stefan"]
[Result "0-1"]
[ECO "D51"]
[WhiteElo "1583"]
[BlackElo "2054"]
[Annotator "ChessBase"]
[PlyCount "85"]
[EventDate "2020.07.10"]
[EventType "swiss"]
[EventCountry "SVK"]
[SourceTitle "playchess.com"]
[Source "ChessBase"]
[SourceQuality "1"]
[TimeControl "3600+30"]

1. d4 {[%emt 0:00:00]} d5 {[%emt 0:00:00]} 2. c4 {[%emt 0:00:00]} e6 {[%emt 0:00:05]} 3. Nc3 {[%emt 0:00:00]} Nf6 {[%emt 0:00:18]} 4. Bg5 {[%emt 0:00:03]} Bb4 {[%emt 0:00:17]} 5. e3 {[%emt 0:00:20]} Nbd7 {[%emt 0:01:36]} 6. a3 {[%emt 0:01:14]} Bxc3+ {[%emt 0:01:14]} 7. bxc3 {[%emt 0:00:04]} c5 {[%emt 0:00:40]} 8. Nf3 {[%emt 0:02:09]} Qa5 {[%emt 0:00:23]} 9. Qb3 {[%emt 0:02:07]} O-O {[%emt 0:00:14]} 10. Bxf6 {[%emt 0:00:52]} Nxf6 {[%emt 0:00:04]} 11. Bd3 {[%emt 0:00:29]} cxd4 {[%emt 0:07:53]} 12. exd4 {[%emt 0:00:16]} dxc4 {[%emt 0:04:29]} 13. Bxc4 {[%emt 0:04:22]} b5 {[%emt 0:00:52]} 14. Be2 {[%emt 0:02:54]} Nd5 {[%emt 0:07:21]} 15. Rc1 {[%emt 0:00:35]} Nf4 {[%emt 0:06:13]} 16. g3 {[%emt 0:11:18]} Nxe2 {[%emt 0:00:16]} 17. Kxe2 {[%emt 0:00:30]} Bb7 {[%emt 0:01:24]} 18. Rhe1 {[%emt 0:06:21]} Rac8 {[%emt 0:03:15]} 19. Ne5 {[%emt 0:00:16]} Rc7 {[%emt 0:01:31]} 20. Qb4 {[%emt 0:01:27]} Qb6 {[%emt 0:00:33]} 21. Kf1 {[%emt 0:01:51]} Rfc8 {[%emt 0:01:22]} 22. Re3 {[%emt 0:03:07]} a5 {[%emt 0:12:54]} 23. Qb2 {[%emt 0:00:11]} Bd5 {[%emt 0:04:19]} 24. Ree1 {[%emt 0:09:49]} f6 {[%emt 0:06:20]} 25. Nd3 {[%emt 0:02:15]} Bc4 {[%emt 0:00:15]} 26. Red1 {[%emt 0:05:43]} Qc6 {[%emt 0:00:13]} 27. Kg1 {[%emt 0:00:53]} Qf3 {[%emt 0:03:24]} 28. Ne1 {[%emt 0:02:56]} Qe2 {[%emt 0:00:08]} 29. Qxe2 {[%emt 0:00:18]} Bxe2 {[%emt 0:00:02]} 30. Rd2 {[%emt 0:00:42]} Bh5 {[%emt 0:01:49]} 31. Rb2 {[%emt 0:05:43]} Rxc3 {[%emt 0:00:10]} 32. Rxc3 {[%emt 0:00:04]} Rxc3 {[%emt 0:00:03]} 33. Rxb5 {[%emt 0:00:47]} Rxa3 {[%emt 0:00:06]} 34. Rxh5 {[%emt 0:00:58]} f5 {[%emt 0:00:15]} 35. Nc2 {[%emt 0:03:53]} Rc3 {[%emt 0:00:25]} 36. Ne3 {[%emt 0:00:17]} a4 {[%emt 0:02:22]} 37. Nxf5 {[%emt 0:00:40]} a3 {[%emt 0:03:53]} 38. Ne7+ {[%emt 0:00:58]} Kf7 {[%emt 0:00:01]} 39. Ra5 {[%emt 0:00:03]} Kxe7 {[%emt 0:00:13]} 40. Ra6 {[%emt 0:01:13]} Kd7 {[%emt 0:01:33]} 41. Kg2 {[%emt 0:00:02]} Rb3 {[%emt 0:00:26]} 42. h3 {[%emt 0:00:24]} Kc7 {[%emt 0:00:10]} 43. Rd6 {[%emt 0:00:09]} 0-1